bitfinex/quotes_BTCUSD_20241102
["timestamp","ask_amount","ask_price","bid_price","bid_amount"]
[1730513073860,0.31869189,69735.0,69734.0,0.022]
[1730513081368,0.31869207,69735.0,69734.0,0.022]
[1730513081820,0.20397207,69735.0,69734.0,0.022]
[1730513082031,0.20397207,69735.0,69734.0,0.1965]
[1730513082462,0.046988,69735.0,69734.0,0.1965]
[1730513082677,0.11158741,69735.0,69734.0,0.1965]
[1730513083191,0.046988,69735.0,69734.0,0.1965]
[1730513083616,0.11158455,69735.0,69734.0,0.1965]
[1730513084046,0.046988,69735.0,69734.0,0.1965]
[1730513084259,0.1115848,69735.0,69734.0,0.311221]
[1730513085155,0.08466474,69735.0,69734.0,0.311221]
[1730513085369,0.11157706,69735.0,69734.0,0.311221]
[1730513087361,0.04698026,69735.0,69734.0,0.311221]
[1730513088475,0.11157706,69735.0,69734.0,0.311221]
[1730513088698,0.04698026,69735.0,69734.0,0.311221]
[1730513088902,0.04697797,69735.0,69734.0,0.311221]
[1730513091747,0.09003052,69735.0,69734.0,0.311221]
[1730513092410,0.04697797,69735.0,69734.0,0.311221]
[1730513092623,0.09002982,69735.0,69734.0,0.311221]
[1730513093050,0.04697656,69735.0,69734.0,0.311221]
[1730513093275,0.09002841,69735.0,69734.0,0.311221]
[1730513093924,0.06311979,69735.0,69734.0,0.311221]
[1730513095319,0.09002455,69735.0,69734.0,0.311221]
[1730513096372,0.09002197,69735.0,69734.0,0.311221]
[1730513097816,0.07656896,69735.0,69734.0,0.311221]
[1730513098031,0.09002071,69735.0,69734.0,0.311221]
[1730513098659,0.04697144,69735.0,69734.0,0.311221]
[1730513099288,0.09002071,69735.0,69734.0,0.311221]
[1730513099491,0.04697144,69735.0,69734.0,0.311221]
[1730513100912,0.09002071,69735.0,69734.0,0.311221]
[1730513101807,0.04697144,69735.0,69734.0,0.311221]
[1730513102045,0.09002071,69735.0,69734.0,0.311221]
[1730513102526,0.04697144,69735.0,69734.0,0.311221]
[1730513102946,0.09002071,69735.0,69734.0,0.311221]
[1730513103400,0.04697144,69735.0,69734.0,0.311221]
[1730513104103,0.04697153,69735.0,69734.0,0.311221]
[1730513104322,0.04697148,69735.0,69734.0,0.311221]
[1730513104545,0.03351978,69735.0,69734.0,0.311221]
[1730513104770,0.0469717,69735.0,69734.0,0.311221]
[1730513106592,0.09001563,69735.0,69734.0,0.311221]
[1730513106825,0.0469717,69735.0,69734.0,0.39729724]
[1730513107043,0.02772576,69735.0,69734.0,0.39729724]
[1730513107503,0.04531005,69735.0,69734.0,0.39729724]
[1730513107756,0.04530359,69735.0,69734.0,0.53575249]
[1730513107990,0.04530359,69735.0,69734.0,0.62310388]
[1730513108216,0.01840629,69735.0,69734.0,0.62310388]
[1730513108453,0.000822,69735.0,69734.0,0.62310388]
[1730513108645,0.000822,69735.0,69734.0,0.62810388]
[1730513110460,0.000822,69735.0,69734.0,0.61810388]
[1730513110906,0.000822,69735.0,69734.0,0.62910388]
[1730513111148,0.000822,69735.0,69734.0,0.61710388]
[1730513111375,0.000822,69735.0,69734.0,0.61910388]
[1730513111660,0.000822,69735.0,69734.0,0.63310388]
[1730513111880,0.000822,69735.0,69734.0,0.62010388]
[1730513112104,0.000822,69735.0,69734.0,0.63410388]
[1730513112319,0.000822,69735.0,69734.0,0.63866903]
[1730513115700,0.000822,69735.0,69734.0,0.74366903]
[1730513120444,0.000822,69735.0,69734.0,0.72966903]
[1730513120930,0.000822,69735.0,69734.0,0.74366903]
[1730513121154,0.000822,69735.0,69734.0,0.72966903]
[1730513121379,0.000822,69735.0,69734.0,0.73166903]
[1730513121621,0.000822,69735.0,69734.0,0.74566903]
[1730513121846,0.000822,69735.0,69734.0,0.73166903]
[1730513122075,0.000822,69735.0,69734.0,0.74566903]
[1730513122789,0.000822,69735.0,69734.0,0.73166903]
[1730513123255,0.000822,69735.0,69734.0,0.74566903]
[1730513123963,0.000822,69735.0,69734.0,0.73166903]
[1730513124184,0.000822,69735.0,69734.0,0.74566903]
[1730513124451,3.13974866,69742.0,69741.0,0.22471]
[1730513124688,3.13974866,69742.0,69741.0,0.6584536]
[1730513124921,3.157427,69742.0,69741.0,0.65558625]
[1730513125412,2.15088858,69742.0,69741.0,0.94064042]
[1730513125898,1.83001325,69742.0,69741.0,0.95921766]
[1730513126116,1.83879807,69742.0,69741.0,0.88586627]
[1730513126358,1.83879807,69742.0,69741.0,0.95921766]
[1730513126812,1.81012107,69742.0,69741.0,0.86686627]
[1730513127065,1.81012107,69742.0,69741.0,0.87186627]
[1730513127274,1.81012107,69742.0,69741.0,0.85786627]
[1730513127710,1.81012107,69742.0,69741.0,0.87186627]
[1730513128146,1.81012107,69742.0,69741.0,0.88586627]
[1730513128394,1.81012107,69742.0,69741.0,0.87186627]
[1730513128608,1.41277545,69742.0,69741.0,0.87186627]
[1730513128825,1.41277545,69742.0,69741.0,0.88586627]
[1730513129965,1.41277545,69742.0,69741.0,0.97321766]
[1730513130196,1.41277545,69742.0,69741.0,0.88586627]
[1730513131394,1.41359745,69742.0,69741.0,0.88586627]
[1730513132569,1.41359745,69742.0,69741.0,0.91457627]
[1730513133445,1.40453428,69742.0,69741.0,0.91457627]
[1730513133901,1.40453428,69742.0,69741.0,0.88586627]
[1730513134556,1.00718866,69742.0,69741.0,0.88586627]
[1730513135067,1.00718866,69742.0,69741.0,0.94324127]
[1730513135930,1.00718866,69742.0,69741.0,0.85588988]
[1730513142760,1.00718866,69742.0,69741.0,0.85753388]
[1730513146531,1.00718866,69742.0,69741.0,0.83506288]
[1730513150591,1.00718866,69742.0,69741.0,0.92241427]
[1730513150814,1.00718866,69742.0,69741.0,0.83506288]
[1730513152595,1.00718866,69742.0,69741.0,0.87762432]
[1730513153499,1.00718866,69742.0,69741.0,0.83506288]
[1730513153723,1.00718866,69742.0,69741.0,1.06089157]
[1730513155532,0.87654068,69742.0,69741.0,1.2779667]
[1730513155762,0.87654068,69742.0,69741.0,1.14824296]
[1730513155763,0.02736159,69742.0,69741.0,1.14824296]
[1730513156001,0.0099616,69742.0,69741.0,1.14824296]
[1730513156230,0.0099616,69742.0,69741.0,1.3029506]
[1730513156484,0.0099616,69742.0,69741.0,1.3316606]
[1730513156719,6e-07,69743.0,69742.0,0.12686]
[1730513156940,6e-07,69743.0,69742.0,0.9753749]
[1730513157165,6e-07,69743.0,69742.0,1.0577794]
[1730513157412,0.20582686,69766.0,69765.0,0.11967]
[1730513157625,0.20582686,69766.0,69765.0,0.20702139]
[1730513158119,0.000812,69771.0,69766.0,0.005]
[1730513158327,0.000812,69771.0,69769.0,0.20201539]
[1730513158551,0.01424676,69770.0,69769.0,0.20201539]
[1730513159464,0.20447872,69770.0,69769.0,0.114664]
[1730513159702,0.20447872,69770.0,69769.0,0.128664]
[1730513159929,0.20447872,69770.0,69769.0,0.26711925]
[1730513160170,0.20447872,69770.0,69769.0,0.28111925]
[1730513161093,0.20447644,69770.0,69769.0,0.28111925]
[1730513162478,0.20447644,69770.0,69769.0,0.028]
[1730513163373,0.20447644,69770.0,69769.0,0.014]
[1730513163591,0.31913844,69770.0,69769.0,0.014]
[1730513163825,0.1256909,69770.0,69764.0,0.11467]
[1730513164046,0.0964,69767.0,69764.0,0.11467]
[1730513164545,0.0964,69765.0,69763.0,0.114673]
[1730513164770,0.02686591,69764.0,69763.0,0.114673]
[1730513165001,0.04448189,69764.0,69763.0,0.114673]
[1730513166390,0.04448189,69764.0,69763.0,0.125673]
[1730513167335,0.04448189,69764.0,69763.0,0.138673]
[1730513167554,0.03104846,69764.0,69763.0,0.114673]
[1730513167779,0.04447952,69764.0,69763.0,0.114673]
[1730513167987,0.04447952,69764.0,69763.0,0.121673]
[1730513168194,0.04447952,69764.0,69763.0,0.127673]
[1730513168417,0.04447794,69764.0,69763.0,0.127673]
[1730513171242,0.04447772,69764.0,69763.0,0.127673]
[1730513174542,0.04447708,69764.0,69763.0,0.127673]
[1730513174768,0.04447708,69764.0,69760.0,0.344035]
[1730513174994,0.04447708,69764.0,69760.0,0.36781225]
[1730513174995,0.0268611,69763.0,69760.0,0.36781225]
[1730513175223,0.0268611,69762.0,69761.0,0.114677]
[1730513175666,0.0444778,69762.0,69761.0,0.114677]
[1730513176070,0.0444778,69762.0,69751.0,0.077]
[1730513176071,0.13182919,69762.0,69758.0,0.114681]
[1730513176282,0.08735139,69759.0,69748.0,0.14276095]
[1730513176492,0.08735139,69756.0,69755.0,0.114685]
[1730513176700,0.11839382,69756.0,69755.0,0.25314025]
[1730513177583,0.03104243,69756.0,69755.0,0.25314025]
[1730513177796,0.03104243,69756.0,69755.0,0.25478225]
[1730513177997,0.01761175,69756.0,69755.0,0.25478225]
[1730513178224,0.01342967,69756.0,69755.0,0.26878425]
[1730513178440,0.03104637,69756.0,69755.0,0.26878425]
[1730513178634,0.01342967,69756.0,69755.0,0.26878425]
[1730513178875,0.03104802,69756.0,69755.0,0.28278425]
[1730513179103,0.03104668,69756.0,69755.0,0.28278425]
[1730513181376,0.04447389,69756.0,69755.0,0.28278425]
[1730513184663,0.04447009,69756.0,69755.0,0.144329]
[1730513185098,0.04447009,69756.0,69755.0,0.029642]
[1730513185314,0.01761701,69756.0,69755.0,0.144329]
[1730513185546,0.02685106,69756.0,69755.0,0.144329]
[1730513185776,0.04445116,69756.0,69755.0,0.144329]
[1730513199631,0.0176001,69756.0,69755.0,0.144329]
[1730513199840,0.04449062,69756.0,69755.0,0.144329]
[1730513200057,0.02689052,69756.0,69755.0,0.144329]
[1730513200262,0.06600099,69756.0,69755.0,0.144329]
[1730513203754,0.06600852,69756.0,69755.0,0.144329]
[1730513208107,0.01759649,69756.0,69755.0,0.144329]
[1730513208310,0.04450361,69756.0,69755.0,0.144329]
[1730513208442,0.04843282,69756.0,69755.0,0.144329]
[1730513208647,0.06602766,69756.0,69755.0,0.144329]
[1730513214100,0.06602766,69756.0,69755.0,0.029642]
[1730513214319,0.31585766,69756.0,69755.0,0.029642]
[1730513214550,0.37979203,69756.0,69755.0,0.029642]
[1730513215461,0.35824076,69756.0,69755.0,0.029642]
[1730513216537,0.37975089,69756.0,69755.0,0.029642]
[1730513216747,0.37973915,69756.0,69755.0,0.029642]
[1730513220751,0.34476702,69756.0,69755.0,0.029642]
[1730513220970,0.37970281,69756.0,69755.0,0.029642]
[1730513221651,0.5423542,69756.0,69755.0,0.029642]
[1730513221874,0.49801418,69756.0,69755.0,0.029642]
[1730513222098,0.45500281,69756.0,69755.0,0.029642]
[1730513222370,0.26666848,69756.0,69755.0,0.029642]
[1730513222599,0.08746642,69756.0,69755.0,0.212829]
[1730513222814,0.08746642,69756.0,69755.0,0.2521899]
[1730513223061,0.08746642,69756.0,69755.0,0.2611899]
[1730513223264,0.08746642,69756.0,69755.0,0.2561899]
[1730513223477,0.08746642,69756.0,69755.0,0.204829]
[1730513223478,0.06987158,69756.0,69755.0,0.204829]
[1730513223685,0.01782329,69756.0,69755.0,0.204829]
[1730513223897,0.06617263,69756.0,69755.0,0.209829]
[1730513224144,0.08765958,69756.0,69755.0,0.209829]
[1730513224319,0.06983794,69756.0,69755.0,0.198829]
[1730513224525,0.08765793,69756.0,69755.0,0.198829]
[1730513224741,0.08765793,69756.0,69755.0,0.208829]
[1730513224979,0.06616933,69756.0,69755.0,0.208829]
[1730513225195,0.08765793,69756.0,69755.0,0.208829]
[1730513225637,0.08765793,69756.0,69755.0,0.220829]
[1730513226491,0.06616933,69756.0,69755.0,0.220829]
[1730513227246,0.03491897,69756.0,69755.0,0.220829]
[1730513227452,0.04834882,69756.0,69755.0,0.220829]
[1730513228339,0.04834882,69756.0,69755.0,0.43638385]
[1730513228340,0.01343037,69756.0,69755.0,0.43638385]
[1730513228549,0.23856003,69765.0,69764.0,0.114672]
[1730513228768,0.26541585,69765.0,69764.0,0.195272]
[1730513229203,0.04834072,69765.0,69764.0,0.195272]
[1730513229850,0.04834072,69765.0,69764.0,0.200272]
[1730513230683,0.04834072,69765.0,69764.0,0.195272]
[1730513231087,0.04834072,69765.0,69764.0,0.214272]
[1730513232134,0.04834072,69765.0,69764.0,0.42002465]
[1730513232521,0.04834072,69765.0,69764.0,0.44272725]
[1730513232750,0.03491281,69765.0,69764.0,0.44272725]
[1730513233377,0.01342791,69765.0,69764.0,0.44272725]
[1730513234813,0.01342264,69765.0,69764.0,0.67207125]
[1730513237404,0.000821,69766.0,69764.0,0.55739925]
[1730513237623,0.000821,69766.0,69765.0,0.11467]
[1730513238089,0.0142389,69766.0,69765.0,0.11467]
[1730513238948,0.03741249,69766.0,69765.0,0.11467]
[1730513239162,0.01423739,69766.0,69765.0,0.11467]
[1730513239387,0.03741249,69766.0,69765.0,0.11467]
[1730513239805,0.03741249,69766.0,69765.0,0.12367]
[1730513240214,0.03741249,69766.0,69765.0,0.13167]
[1730513241296,0.03741249,69766.0,69765.0,0.27012525]
[1730513241500,0.03740945,69766.0,69765.0,0.27012525]
[1730513241718,0.000821,69766.0,69765.0,0.27012525]
[1730513253707,0.01424323,69766.0,69765.0,0.27012525]
[1730513258874,0.01424323,69766.0,69765.0,0.26512525]
[1730513259334,0.000821,69766.0,69765.0,0.26512525]
[1730513259590,0.01426057,69766.0,69765.0,0.26512525]
[1730513260417,0.01426057,69766.0,69765.0,0.43282525]
[1730513260622,0.03743163,69766.0,69765.0,0.43282525]
[1730513261416,0.03743163,69766.0,69765.0,0.43446725]
[1730513262808,0.02399206,69766.0,69765.0,0.43446725]
[1730513263075,0.03743559,69766.0,69765.0,0.43446725]
[1730513264136,0.03743559,69766.0,69765.0,0.53446725]
[1730513264475,0.01426453,69766.0,69765.0,0.53446725]
[1730513264891,0.01426453,69766.0,69765.0,0.51746725]
[1730513265093,0.01426453,69766.0,69765.0,0.52546725]
[1730513265440,0.01426453,69766.0,69765.0,0.53446725]
[1730513265657,0.01426453,69766.0,69765.0,0.52646725]
[1730513265871,0.01426453,69766.0,69765.0,0.53846725]
[1730513266292,0.000821,69766.0,69765.0,0.53846725]
[1730513266505,0.01426613,69766.0,69765.0,0.53846725]
[1730513266933,0.01426613,69766.0,69765.0,0.54846725]
[1730513273777,0.01426675,69766.0,69765.0,0.54846725]
[1730513277148,0.000821,69766.0,69765.0,0.54846725]
[1730513278749,0.01426644,69766.0,69765.0,0.54846725]
[1730513280266,0.000821,69766.0,69765.0,0.54846725]
[1730513283587,0.01426636,69766.0,69765.0,0.54846725]
[1730513283822,0.000821,69766.0,69765.0,0.54846725]
[1730513285574,0.01426643,69766.0,69765.0,0.54846725]
[1730513286011,0.01426647,69766.0,69765.0,0.54846725]
[1730513288427,0.000821,69766.0,69765.0,0.54846725]
[1730513288836,0.01426609,69766.0,69765.0,0.54846725]
[1730513289270,0.000821,69766.0,69765.0,0.54846725]
[1730513289673,0.01426661,69766.0,69765.0,0.54846725]
[1730513290627,0.000821,69766.0,69765.0,0.54846725]
[1730513290828,0.01426648,69766.0,69765.0,0.54846725]
[1730513291039,0.000821,69766.0,69765.0,0.54846725]
[1730513293605,0.01426746,69766.0,69765.0,0.54846725]
[1730513293995,0.000821,69766.0,69765.0,0.54846725]
[1730513294258,0.01426743,69766.0,69765.0,0.54846725]
[1730513295106,0.000821,69766.0,69765.0,0.54846725]
[1730513295583,0.01426758,69766.0,69765.0,0.54846725]
[1730513295807,0.01426764,69766.0,69765.0,0.55346725]
[1730513296023,0.000821,69766.0,69765.0,0.55346725]
[1730513298124,0.000821,69766.0,69765.0,0.54846725]
[1730513301875,0.000821,69766.0,69765.0,0.53846725]
[1730513302331,0.000821,69766.0,69765.0,0.53146725]
[1730513302565,0.000821,69766.0,69765.0,0.54546725]
[1730513303298,0.21707513,69772.0,69771.0,0.11466]
[1730513303518,0.0369316,69772.0,69771.0,0.25311525]
[1730513303945,0.01344562,69772.0,69771.0,0.25311525]
[1730513304641,0.01344562,69772.0,69771.0,0.26411525]
[1730513305539,0.01344562,69772.0,69771.0,0.27711525]
[1730513306416,0.15849552,69780.0,69778.0,0.114648]
[1730513306621,0.0981,69778.0,69776.0,0.229303]
[1730513306863,0.01344621,69777.0,69776.0,0.114651]
[1730513307082,0.03693081,69777.0,69776.0,0.114651]
[1730513308663,0.03693081,69777.0,69776.0,0.121651]
[1730513309104,0.03693081,69777.0,69776.0,0.129651]
[1730513310770,0.03693112,69777.0,69776.0,0.129651]
[1730513311000,0.03693112,69777.0,69776.0,0.015]
[1730513311216,0.03693112,69777.0,69776.0,0.129652]
[1730513313606,0.0234846,69777.0,69776.0,0.129652]
[1730513313804,0.03693097,69777.0,69776.0,0.129652]
[1730513316423,0.03693097,69777.0,69776.0,0.015]
[1730513316854,0.03693097,69777.0,69776.0,0.57530445]
[1730513317069,0.03459671,69777.0,69776.0,0.66265584]
[1730513317277,0.000812,69787.0,69781.0,0.229288]
[1730513317500,0.21707513,69784.0,69783.0,0.114641]
[1730513317714,0.01344479,69785.0,69784.0,0.114639]
[1730513317931,0.000812,69787.0,69785.0,0.114637]
[1730513318134,0.01447919,69786.0,69785.0,0.114637]
[1730513318960,0.01447919,69786.0,69785.0,0.189737]
[1730513319371,0.01447919,69786.0,69785.0,0.199737]
[1730513319809,0.01447181,69786.0,69785.0,0.199737]
[1730513320268,0.01447181,69786.0,69785.0,0.208737]
[1730513320927,0.01446905,69786.0,69785.0,0.208737]
[1730513324379,0.00104016,69786.0,69785.0,0.208737]
[1730513324603,0.01446093,69786.0,69785.0,0.208737]
[1730513328000,0.01445767,69786.0,69785.0,0.208737]
[1730513328443,0.00104016,69786.0,69785.0,0.208737]
[1730513328649,0.01445733,69786.0,69785.0,0.208737]
[1730513331720,0.00104016,69786.0,69785.0,0.208737]
[1730513331895,0.01445549,69786.0,69785.0,0.208737]
[1730513334115,0.01445493,69786.0,69785.0,0.208737]
[1730513335213,0.00104016,69786.0,69785.0,0.208737]
[1730513335422,0.01445477,69786.0,69785.0,0.208737]
[1730513337361,0.01445477,69786.0,69785.0,0.199737]
[1730513337772,0.01445477,69786.0,69785.0,0.212737]
[1730513338197,0.01445477,69786.0,69785.0,0.202737]
[1730513338408,0.01445477,69786.0,69785.0,0.216737]
[1730513338635,0.01445582,69786.0,69785.0,0.216737]
[1730513339089,0.01445583,69786.0,69785.0,0.216737]
[1730513339501,0.01445583,69786.0,69785.0,0.33032543]
[1730513339921,0.01445583,69786.0,69785.0,0.216737]
[1730513341366,0.01446013,69786.0,69785.0,0.216737]
[1730513341569,0.01446013,69786.0,69785.0,0.141637]
[1730513341905,0.04913234,69786.0,69785.0,0.141637]
[1730513343518,0.04913234,69786.0,69785.0,0.027]
[1730513344978,0.04914258,69786.0,69785.0,0.027]
[1730513347157,0.16377858,69786.0,69785.0,0.027]
[1730513348236,0.1637868,69786.0,69785.0,0.027]
[1730513348660,0.16378568,69786.0,69785.0,0.027]
[1730513350379,0.26178568,69786.0,69785.0,0.027]
[1730513351256,0.114644,69781.0,69780.0,0.001644]
[1730513351491,0.2154327,69781.0,69780.0,0.001644]
[1730513351989,0.25009949,69781.0,69780.0,0.001644]
[1730513353544,0.34809949,69781.0,69780.0,0.001644]
[1730513354002,0.34809949,69781.0,69780.0,0.006644]
[1730513354630,0.34809949,69781.0,69780.0,0.010644]
[1730513354844,0.34809949,69781.0,69780.0,0.005644]
[1730513355491,0.34809267,69781.0,69780.0,0.005644]
[1730513355707,0.3346655,69781.0,69780.0,0.010644]
[1730513355927,0.34809171,69781.0,69780.0,0.010644]
[1730513359478,0.34808849,69781.0,69780.0,0.010644]
[1730513359711,0.34808849,69781.0,69780.0,0.001145]
[1730513361951,0.23344449,69781.0,69771.0,0.229318]
[1730513362176,0.20200039,69778.0,69773.0,0.114656]
[1730513362400,0.01342299,69777.0,69773.0,0.114656]
[1730513362608,0.01342168,69776.0,69773.0,0.114656]
[1730513363045,0.04809944,69775.0,69773.0,0.114656]
[1730513363259,0.01342168,69774.0,69773.0,0.114656]
[1730513363688,0.0481088,69774.0,69773.0,0.114656]
[1730513363896,0.04873381,69774.0,69773.0,0.114656]
[1730513364309,0.04873381,69774.0,69773.0,0.121656]
[1730513364525,0.04873381,69774.0,69773.0,0.128656]
[1730513364727,0.04873381,69774.0,69773.0,0.114656]
[1730513364943,0.04789716,69774.0,69773.0,0.114656]
[1730513365150,0.04889716,69774.0,69773.0,0.125656]
[1730513366241,0.04889881,69774.0,69773.0,0.134656]
[1730513367128,0.04889881,69774.0,69773.0,0.1363]
[1730513367360,0.04889881,69774.0,69773.0,0.2128]
[1730513367585,0.04952382,69774.0,69773.0,0.2128]
[1730513369107,0.04952382,69774.0,69773.0,0.35125525]
[1730513369320,0.04952382,69774.0,69773.0,0.44535525]
[1730513369539,0.01442333,69774.0,69773.0,0.44535525]
[1730513369754,0.001,69774.0,69773.0,0.44535525]
[1730513369977,0.01442883,69774.0,69773.0,0.44535525]
[1730513370181,0.001,69774.0,69773.0,0.44535525]
[1730513370388,0.01442882,69774.0,69773.0,0.44535525]
[1730513373379,0.01443673,69774.0,69773.0,0.44535525]
[1730513376914,0.001,69774.0,69773.0,0.44535525]
[1730513377116,0.01443949,69774.0,69773.0,0.44535525]
[1730513383102,0.0144412,69774.0,69773.0,0.44535525]
[1730513391455,0.01444179,69774.0,69773.0,0.44535525]
[1730513391673,0.001,69774.0,69773.0,0.44535525]
[1730513391888,0.01444209,69774.0,69773.0,0.44535525]
[1730513394957,0.01444332,69774.0,69773.0,0.44535525]
[1730513401223,0.01444853,69774.0,69773.0,0.44535525]
[1730513404660,0.01444756,69774.0,69773.0,0.44535525]
[1730513405046,0.001,69774.0,69773.0,0.44535525]
[1730513405294,0.01444756,69774.0,69773.0,0.44535525]
[1730513407769,0.02407976,69774.0,69773.0,0.44535525]
[1730513412009,0.02407973,69774.0,69773.0,0.44535525]
[1730513412468,0.02407968,69774.0,69773.0,0.44535525]
[1730513415786,0.0106322,69774.0,69773.0,0.44535525]
[1730513416004,0.0240794,69774.0,69773.0,0.44535525]
[1730513426586,0.0106322,69774.0,69773.0,0.44535525]
[1730513426800,0.02407836,69774.0,69773.0,0.44535525]
[1730513427007,0.02407836,69774.0,69773.0,0.43635525]
[1730513427227,0.02307836,69774.0,69773.0,0.43935525]
[1730513427439,0.02307836,69774.0,69773.0,0.45335525]
[1730513428320,0.0096322,69774.0,69773.0,0.45335525]
[1730513430023,0.0096322,69774.0,69773.0,0.55335525]
[1730513432551,0.00948888,69774.0,69773.0,0.55335525]
[1730513433855,0.00948888,69774.0,69773.0,0.56798066]
[1730513435128,0.00948888,69774.0,69773.0,0.55335525]
[1730513449396,0.01031088,69774.0,69773.0,0.55335525]
[1730513458079,0.01031088,69774.0,69773.0,0.55835525]
[1730513461231,0.01031088,69774.0,69773.0,0.6011432]
[1730513461466,0.01031088,69774.0,69773.0,0.55835525]
[1730513461700,0.01031088,69774.0,69773.0,0.45925525]
[1730513467984,0.01031088,69774.0,69773.0,0.54534525]
[1730513468339,0.01035088,69774.0,69773.0,0.45925525]
[1730513472103,0.01035088,69774.0,69773.0,0.55075525]
[1730513472349,0.01035088,69774.0,69773.0,0.5935523]
[1730513472586,0.01035088,69774.0,69773.0,0.55075525]
[1730513472807,0.01035088,69774.0,69773.0,0.5935523]
[1730513473292,0.01035088,69774.0,69773.0,0.55075525]
[1730513473712,0.01035088,69774.0,69773.0,0.59356564]
[1730513474648,0.01035088,69774.0,69773.0,0.55075525]
[1730513474864,0.01035088,69774.0,69773.0,0.59356564]
[1730513475742,0.01035088,69774.0,69773.0,0.55075525]
[1730513475950,0.01035088,69774.0,69773.0,0.5935724]
[1730513476645,0.01035088,69774.0,69773.0,0.70711423]
[1730513476882,0.01035088,69774.0,69773.0,0.79470833]
[1730513477089,0.01035088,69774.0,69773.0,0.70911423]
[1730513477307,0.01035088,69774.0,69773.0,0.79272617]
[1730513477525,0.01035088,69774.0,69773.0,0.792589]
[1730513477750,0.01035088,69774.0,69773.0,0.69297705]
[1730513478636,0.01035088,69774.0,69773.0,0.80455316]
[1730513479049,0.01035088,69774.0,69773.0,0.79055316]
[1730513479481,0.01035088,69774.0,69773.0,0.86875278]
[1730513479713,0.01035088,69774.0,69773.0,0.80455316]
[1730513480596,0.01035088,69774.0,69773.0,0.86874295]
[1730513480805,0.01035088,69774.0,69773.0,0.80455316]
[1730513481242,0.01035088,69774.0,69773.0,0.86874339]
[1730513481453,0.01035088,69774.0,69773.0,0.86874204]
[1730513481716,0.01035088,69774.0,69773.0,0.86874167]
[1730513481939,0.01035088,69774.0,69773.0,0.80455316]
[1730513482165,0.01035088,69774.0,69773.0,0.80428666]
[1730513482863,0.01035088,69774.0,69773.0,0.91125904]
[1730513483072,0.01035088,69774.0,69773.0,0.80928666]
[1730513484845,0.01035088,69774.0,69773.0,0.89483653]
[1730513485054,0.01035088,69774.0,69773.0,0.80428666]
[1730513485264,0.01035088,69774.0,69773.0,0.80928666]
[1730513486160,0.01035088,69774.0,69773.0,0.89482825]
[1730513486367,0.01035088,69774.0,69773.0,0.80928666]
[1730513486585,0.01035088,69774.0,69773.0,0.89482233]
[1730513486825,0.01035088,69774.0,69773.0,0.80928666]
[1730513487030,0.01035088,69774.0,69773.0,0.79224707]
[1730513487241,0.01035088,69774.0,69773.0,0.79724707]
[1730513487459,0.01035088,69774.0,69773.0,0.88459846]
[1730513487687,0.01035088,69774.0,69773.0,0.71171055]
[1730513488137,0.01035088,69774.0,69773.0,0.85083332]
[1730513488986,0.01035088,69774.0,69773.0,0.84583332]
[1730513489192,0.01035088,69774.0,69773.0,0.85083332]
[1730513489618,0.01035088,69774.0,69773.0,0.93635675]
[1730513489842,0.01035088,69774.0,69773.0,0.93435675]
[1730513490746,0.01035088,69774.0,69773.0,0.92035675]
[1730513491156,0.01035088,69774.0,69773.0,0.84883332]
[1730513491361,0.01035088,69774.0,69773.0,0.9558057]
[1730513491590,0.01035088,69774.0,69773.0,1.06550278]
[1730513491817,0.01035088,69774.0,69773.0,1.06549022]
[1730513492052,0.01035088,69774.0,69773.0,0.8732725]
[1730513492264,0.01035088,69774.0,69773.0,0.96062389]
[1730513492472,0.01035088,69774.0,69773.0,0.94662389]
[1730513492718,0.01035088,69774.0,69773.0,0.93262389]
[1730513492929,0.01035088,69774.0,69773.0,0.94662389]
[1730513493799,0.01035088,69774.0,69773.0,0.96062389]
[1730513494521,8.8e-07,69774.0,69773.0,0.96062389]
[1730513496735,0.00082288,69774.0,69773.0,0.96062389]
[1730513502672,0.00082288,69774.0,69773.0,1.06737288]
[1730513504132,0.00082288,69774.0,69773.0,1.07310688]
[1730513505853,0.00082288,69774.0,69773.0,1.07309608]
[1730513506294,8.8e-07,69774.0,69773.0,1.07309608]
[1730513506505,8.8e-07,69774.0,69773.0,0.96635789]
[1730513507146,8.8e-07,69781.0,69780.0,0.012]
[1730513507399,8.8e-07,69781.0,69780.0,0.82269403]
[1730513507619,8.8e-07,69781.0,69780.0,1.11001418]
[1730513507842,8.8e-07,69781.0,69780.0,0.79809549]
[1730513508064,8.8e-07,69781.0,69780.0,0.67559549]
[1730513508285,8.8e-07,69781.0,69780.0,0.68464417]
[1730513508724,8.8e-07,69781.0,69780.0,0.69864417]
[1730513508946,8.8e-07,69781.0,69780.0,0.68916842]
[1730513509167,8.8e-07,69781.0,69780.0,0.82764572]
[1730513509418,8.8e-07,69781.0,69780.0,0.84164572]
[1730513509640,8.8e-07,69781.0,69780.0,0.45744993]
[1730513509873,8.8e-07,69781.0,69780.0,0.35810125]
[1730513510311,8.8e-07,69781.0,69780.0,0.38610125]
[1730513510745,8.8e-07,69781.0,69780.0,0.35810125]
[1730513510951,8.8e-07,69781.0,69780.0,0.37210125]
[1730513511358,8.8e-07,69781.0,69780.0,0.36710125]
[1730513511558,8.8e-07,69781.0,69780.0,0.37210125]
[1730513511815,8.8e-07,69781.0,69780.0,0.38610125]
[1730513512465,8.8e-07,69781.0,69780.0,0.37210125]
[1730513512827,8.8e-07,69781.0,69780.0,0.38610125]
[1730513513243,8.8e-07,69781.0,69780.0,0.38110125]
[1730513513447,8.8e-07,69781.0,69780.0,0.38610125]
[1730513514276,8.8e-07,69781.0,69780.0,0.38110125]
[1730513514475,8.8e-07,69781.0,69780.0,0.38610125]
[1730513515278,8.8e-07,69781.0,69780.0,0.38110125]
[1730513515704,8.8e-07,69781.0,69780.0,0.38610125]
[1730513516770,0.09820088,69781.0,69780.0,0.38110125]
[1730513517404,0.09820088,69781.0,69780.0,0.38610125]
[1730513517885,8.8e-07,69781.0,69780.0,0.38610125]
[1730513518469,8.8e-07,69781.0,69780.0,0.38110125]
[1730513518681,8.8e-07,69781.0,69780.0,0.38610125]
[1730513518893,8.8e-07,69781.0,69780.0,0.38110125]
[1730513519100,8.8e-07,69781.0,69780.0,0.38610125]
[1730513520305,8.8e-07,69781.0,69780.0,0.4797628]
[1730513521251,8.8e-07,69781.0,69780.0,0.4607628]
[1730513521483,8.8e-07,69781.0,69780.0,0.36710125]
[1730513521694,8.8e-07,69781.0,69780.0,0.38610125]
[1730513522111,8.8e-07,69781.0,69780.0,0.36710125]
[1730513522314,8.8e-07,69781.0,69780.0,0.37210125]
[1730513522529,8.8e-07,69781.0,69780.0,0.38610125]
[1730513523605,8.8e-07,69781.0,69780.0,0.42839959]
[1730513526248,8.8e-07,69781.0,69780.0,0.38610125]
[1730513527982,8.8e-07,69781.0,69780.0,0.38110125]
[1730513528195,8.8e-07,69781.0,69780.0,0.38610125]